bitfinex-derivatives/quotes_SOLF0:USTF0_20230402
["timestamp","ask_amount","ask_price","bid_price","bid_amount"]
[1680393601924,18.92,21.094,21.087,19.01]
[1680393608630,18.87,21.091,21.083,19.01]
[1680393616235,18.92,21.093,21.085,19.01]
[1680393617133,18.87,21.092,21.084,19.02]
[1680393626936,18.92,21.09,21.082,19.01]
[1680393631444,18.92,21.093,21.086,19.01]
[1680393631646,100.06207033,21.097,21.089,19.02]
[1680393631647,18.93207033,21.097,21.089,19.02]
[1680393632444,0.06207033,21.097,21.087,23.65]
[1680393642653,0.06207033,21.097,21.088,5.0]
[1680393643653,0.06207033,21.097,21.091,23.81]
[1680393643854,0.06373927,21.101,21.091,23.81]
[1680393644152,46.4794038,21.101,21.091,23.81]
[1680393644353,70.03566453,21.1,21.088,28.7]
[1680393644553,44.67299421,21.099,21.088,28.7]
[1680393645354,44.67299421,21.099,21.088,23.7]
[1680393648456,23.74,21.093,21.086,0.06366122]
[1680393648658,23.74,21.093,21.081,28.7]
[1680393665467,0.07112234,21.094,21.084,23.65]
[1680393665667,0.07112234,21.094,21.087,23.7]
[1680393665861,0.07112234,21.094,21.09,23.7]
[1680393666164,48.1356,21.098,21.09,23.7]
[1680393667066,48.1356,21.098,21.088,23.65]
[1680393674968,0.06410976,21.099,21.088,23.65]
[1680393675667,0.06410976,21.099,21.089,48.112]
[1680393675868,44.67087511,21.099,21.089,48.112]
[1680393676069,0.06410976,21.099,21.089,48.112]
[1680393676368,44.67107928,21.099,21.089,48.112]
[1680393676962,44.67107928,21.099,21.091,23.65]
[1680393677269,0.06410976,21.099,21.091,23.65]
[1680393677870,44.67116526,21.099,21.091,23.65]
[1680393678072,0.06410976,21.099,21.091,23.65]
[1680393697378,0.06410976,21.099,21.089,48.112]
[1680393697673,0.06410976,21.099,21.092,19.04]
[1680393697975,44.67116526,21.099,21.092,19.04]
[1680393701780,44.67116526,21.099,21.092,18.91]
[1680393702580,19.04,21.096,21.088,18.91]
[1680393706981,19.04,21.094,21.086,18.91]
[1680393716985,18.97,21.092,21.085,19.04]
[1680393722794,18.97,21.089,21.082,19.04]
[1680393734806,19.04,21.087,21.079,18.91]
[1680393736112,18.97,21.084,21.077,19.04]
[1680393747014,19.04,21.083,21.076,19.04]
[1680393756628,18.97,21.086,21.079,18.91]
[1680393757028,19.0385709,21.087,21.079,18.91]
[1680393767035,0.0685709,21.087,21.082,19.04]
[1680393767236,19.04,21.089,21.082,19.04]
[1680393771030,0.06355006,21.092,21.085,18.91]
[1680393785039,44.66425204,21.092,21.085,18.91]
[1680393786943,63.70425204,21.092,21.085,18.91]
[1680393787144,19.10355006,21.092,21.085,18.91]
[1680393789342,0.06355006,21.092,21.088,18.91]
[1680393789646,19.04,21.095,21.088,18.91]
[1680393793942,19.04,21.089,21.081,19.04]
[1680393801753,19.04,21.091,21.083,19.04]
[1680393813056,0.06304042,21.092,21.086,18.91]
[1680393813362,44.6585969,21.095,21.086,18.91]
[1680393813558,18.97,21.093,21.086,18.91]
[1680393813859,44.6585969,21.092,21.086,18.91]
[1680393817463,44.6585969,21.092,21.083,23.67]
[1680393817663,23.65,21.095,21.083,23.67]
[1680393817963,44.65792754,21.094,21.083,23.67]
[1680393822067,44.65792754,21.094,21.084,5.0]
[1680393830271,44.65792754,21.094,21.083,23.67]
[1680393830475,23.82,21.092,21.081,23.82]
[1680393830673,44.65792754,21.091,21.081,23.82]
[1680393831872,23.82,21.092,21.081,23.82]
[1680393835078,44.62583604,21.091,21.081,23.82]
[1680393835778,23.82,21.092,21.081,23.82]
[1680393836984,44.6064062,21.091,21.081,23.82]
[1680393840383,23.82,21.092,21.081,23.82]
[1680393844090,44.4492,21.093,21.083,23.81]
[1680393844390,44.60621164,21.092,21.084,5.0]
[1680393850989,44.4492,21.093,21.088,23.81]
[1680393851388,0.06433638,21.096,21.091,23.67]
[1680393851592,0.06558917,21.101,21.091,23.67]
[1680393852095,0.06558917,21.101,21.092,5.0]
[1680393853198,0.06558917,21.101,21.091,23.67]
[1680393854098,0.06558917,21.101,21.092,5.0]
[1680393857996,0.06558917,21.101,21.091,23.67]
[1680393859497,0.06558917,21.101,21.092,5.0]
[1680393861200,0.06558917,21.101,21.091,23.67]
[1680393863401,0.06558917,21.101,21.092,5.0]
[1680393863801,0.06558917,21.101,21.091,23.67]
[1680393866403,0.06558917,21.101,21.092,5.0]
[1680393871508,0.06558917,21.101,21.091,23.67]
[1680393872110,0.06558917,21.101,21.092,5.0]
[1680393876415,0.06558917,21.101,21.091,23.67]
[1680393877614,19.05,21.1,21.093,19.05]
[1680393879414,19.05,21.1,21.094,5.0]
[1680393879613,0.06558917,21.101,21.095,19.05]
[1680393879813,19.01,21.103,21.095,19.05]
[1680393880215,19.01,21.103,21.094,5.0]
[1680393880216,0.06842705,21.105,21.099,19.05]
[1680393880416,1.74217745,21.105,21.099,19.05]
[1680393880614,19.05,21.106,21.099,19.05]
[1680393880818,19.11019856,21.109,21.102,19.05]
[1680393882417,0.06019856,21.109,21.1,23.66]
[1680393882716,0.06019856,21.109,21.101,44.2878]
[1680393883120,0.06019856,21.109,21.102,5.0]
[1680393883417,0.06019856,21.109,21.101,44.2878]
[1680393883716,0.06019856,21.109,21.102,5.0]
[1680393884215,0.06019856,21.109,21.101,44.2878]
[1680393884619,0.06019856,21.109,21.102,5.0]
[1680393890123,0.06019856,21.109,21.101,44.2878]
[1680393890619,0.06019856,21.109,21.102,5.0]
[1680393891021,0.06019856,21.109,21.101,44.2878]
[1680393891620,0.06019856,21.109,21.102,5.0]
[1680393892021,0.06019856,21.109,21.101,44.2878]
[1680393892220,0.06019856,21.109,21.102,5.0]
[1680393892425,0.06019856,21.109,21.101,44.2878]
[1680393892623,0.06019856,21.109,21.102,5.0]
[1680393894523,0.06019856,21.109,21.101,44.2878]
[1680393895323,0.06019856,21.109,21.102,5.0]
[1680393904832,0.06019856,21.109,21.105,23.75]
[1680393905035,0.06155652,21.114,21.105,23.75]
[1680393906838,0.06155652,21.114,21.106,5.0]
[1680393907032,0.06155652,21.114,21.107,23.66]
[1680393908432,0.06155652,21.114,21.111,23.79]
[1680393908629,0.0711605,21.12,21.111,23.79]
[1680393909236,141.8,21.119,21.107,23.79]
[1680393909430,23.79,21.116,21.104,23.66]
[1680393917046,23.79,21.116,21.106,23.75]
[1680393926952,23.79,21.118,21.106,23.75]
[1680393936954,23.7911605,21.12,21.108,23.75]
[1680393938862,1.74111031,21.119,21.108,23.75]
[1680393939861,23.7911605,21.12,21.108,23.75]
[1680393947464,19.01,21.117,21.109,19.01]
[1680393967076,19.01,21.119,21.111,19.01]
[1680393973178,42.03291398,21.118,21.111,19.01]
[1680393976984,61.04291398,21.118,21.11,19.01]
[1680393977185,42.03291398,21.117,21.11,19.01]
[1680393992506,19.01,21.118,21.11,19.01]
[1680393993604,19.01,21.118,21.111,5.0]
[1680393993904,0.0711605,21.12,21.113,19.01]
[1680393994805,42.1234423,21.12,21.113,19.01]
[1680394005110,42.1234423,21.12,21.111,5.0]
[1680394005308,42.0522818,21.119,21.116,19.01]
[1680394005508,42.0522818,21.123,21.116,19.01]
[1680394005708,43.7930233,21.122,21.116,19.01]
[1680394006010,42.0522818,21.121,21.116,19.01]
[1680394006202,42.0522818,21.12,21.116,19.01]
[1680394006405,42.0522818,21.119,21.116,19.01]
[1680394006700,42.0522818,21.118,21.113,5.0]
[1680394006908,42.0522818,21.124,21.117,19.01]
[1680394007102,42.0522818,21.123,21.121,19.01]
[1680394007307,19.01,21.128,21.121,19.01]
[1680394007508,42.06732676,21.127,21.121,19.01]
[1680394017016,19.01,21.126,21.118,19.01]
[1680394017518,19.01,21.128,21.121,19.01]
[1680394017717,42.09523465,21.127,21.121,19.01]
[1680394017917,19.01,21.128,21.121,19.01]
[1680394025321,0.06635563,21.129,21.118,19.01]
[1680394025322,19.01,21.126,21.118,19.01]
[1680394026026,19.01,21.123,21.115,19.01]
[1680394027118,19.01,21.12,21.113,19.01]
[1680394037030,19.01,21.121,21.114,19.01]
[1680394046939,19.01,21.119,21.112,19.01]
[1680394057047,19.01,21.121,21.113,19.01]
[1680394067052,19.01,21.12,21.113,19.01]
[1680394076957,19.01,21.12,21.112,19.01]
[1680394086964,19.01,21.121,21.113,19.01]
[1680394087965,42.07499496,21.12,21.113,19.01]
[1680394088265,19.01,21.121,21.113,19.01]
[1680394092167,0.06326595,21.123,21.116,19.01]
[1680394092470,42.13959536,21.123,21.119,19.01]
[1680394092666,42.07632941,21.122,21.119,19.01]
[1680394092966,42.07632941,21.121,21.119,19.01]
[1680394093166,42.07632941,21.12,21.119,19.01]
[1680394093469,42.07632941,21.125,21.119,19.01]
[1680394096372,1.74053411,21.124,21.119,19.01]
[1680394096670,42.07632941,21.123,21.119,19.01]
[1680394097171,19.01,21.126,21.119,19.01]
[1680394097172,42.07632941,21.122,21.119,19.01]
[1680394097372,42.07632941,21.121,21.119,19.01]
[1680394097671,42.07632941,21.12,21.119,19.01]
[1680394098263,42.07632941,21.125,21.119,19.01]
[1680394098471,42.07632941,21.124,21.119,19.01]
[1680394098673,42.07632941,21.125,21.119,19.01]
[1680394098871,42.07632941,21.124,21.119,19.01]
[1680394099066,42.07632941,21.123,21.119,19.01]
[1680394099274,42.07632941,21.122,21.119,19.01]
[1680394099472,42.07632941,21.121,21.119,19.01]
[1680394099772,42.07632941,21.12,21.119,19.01]
[1680394100274,42.07632941,21.125,21.119,19.01]
[1680394111273,0.06826068,21.128,21.122,19.01]
[1680394111582,42.07941681,21.128,21.122,19.01]
[1680394114374,42.07941681,21.128,21.122,18.81489156]
[1680394115282,19.01,21.129,21.122,18.81489156]
[1680394117087,19.01,21.131,21.124,19.01]
[1680394117281,42.07234227,21.13,21.124,19.01]
[1680394118587,0.06630345,21.132,21.127,19.01]
[1680394118789,19.01,21.135,21.127,19.01]
[1680394118790,43.81375399,21.134,21.127,19.01]
[1680394119087,43.81375399,21.133,21.127,19.01]
[1680394119281,19.01,21.135,21.127,19.01]
[1680394119282,42.07389843,21.132,21.127,19.01]
[1680394119485,42.07389843,21.134,21.127,19.01]
[1680394119689,43.81035306,21.133,21.127,19.01]
[1680394119987,42.07050263,21.132,21.127,19.01]
[1680394120188,19.01,21.135,21.127,19.01]
[1680394120393,43.81075401,21.134,21.127,19.01]
[1680394120590,43.81075401,21.133,21.127,19.01]
[1680394120784,42.07089869,21.132,21.127,19.01]
[1680394120984,19.01,21.135,21.127,19.01]
[1680394121184,43.81113364,21.134,21.127,19.01]
[1680394121388,43.81113364,21.133,21.127,19.01]
[1680394121591,42.07127473,21.132,21.127,19.01]
[1680394121887,19.01,21.135,21.127,19.01]
[1680394122088,43.81143219,21.134,21.127,19.01]
[1680394122286,43.81143219,21.133,21.127,19.01]
[1680394122587,42.07157055,21.132,21.127,19.01]
[1680394122887,19.01,21.135,21.127,19.01]
[1680394123087,43.81171027,21.134,21.127,19.01]
[1680394123388,43.81171027,21.133,21.127,19.01]
[1680394123586,19.01,21.135,21.127,19.01]
[1680394123888,43.81184952,21.134,21.127,19.01]
[1680394124084,43.81184952,21.133,21.127,19.01]
[1680394124284,19.01,21.135,21.127,19.01]
[1680394124479,43.81201624,21.134,21.127,19.01]
[1680394124687,43.81201624,21.133,21.127,19.01]
[1680394124887,19.01,21.135,21.127,19.01]
[1680394125086,43.81205828,21.134,21.127,19.01]
[1680394125282,43.81205828,21.133,21.127,19.01]
[1680394125588,19.01,21.135,21.127,19.01]
[1680394125786,43.81211555,21.134,21.127,19.01]
[1680394125989,43.81211555,21.133,21.127,19.01]
[1680394126290,19.01,21.135,21.127,19.01]
[1680394126588,43.81217041,21.134,21.127,19.01]
[1680394126787,43.81217041,21.133,21.127,19.01]
[1680394126988,19.01,21.133,21.126,19.01]
[1680394136995,19.01,21.135,21.127,19.01]
[1680394137197,43.80906975,21.134,21.127,19.01]
[1680394137396,1.73985546,21.133,21.127,19.01]
[1680394137695,19.01,21.135,21.127,19.01]
[1680394137895,43.80873421,21.134,21.127,19.01]
[1680394138096,1.7398567,21.133,21.127,19.01]
[1680394138293,19.01,21.135,21.127,19.01]
[1680394138491,43.80888657,21.134,21.127,19.01]
[1680394138692,1.73985786,21.133,21.127,19.01]
[1680394138988,19.01,21.135,21.127,19.01]
[1680394139187,43.80852582,21.134,21.127,19.01]
[1680394139387,1.73984092,21.133,21.127,19.01]
[1680394139593,19.01,21.135,21.127,19.01]
[1680394139796,43.80875561,21.134,21.127,19.01]
[1680394139994,1.73984515,21.133,21.127,19.01]
[1680394140197,19.01,21.135,21.127,19.01]
[1680394140398,43.80887942,21.134,21.127,19.01]
[1680394140597,1.73984783,21.133,21.127,19.01]
[1680394140898,19.01,21.135,21.127,19.01]
[1680394141197,1.73977661,21.134,21.127,19.01]
[1680394151910,1.73977661,21.134,21.128,19.01]
[1680394152110,1.73977661,21.133,21.128,19.01]
[1680394152310,19.01,21.136,21.128,19.01]
[1680394152610,43.8112087,21.135,21.128,19.01]
[1680394152811,1.73978322,21.134,21.128,19.01]
[1680394153012,1.73978322,21.133,21.128,19.01]
[1680394153211,19.01,21.136,21.128,19.01]
[1680394153413,43.8110068,21.135,21.128,19.01]
[1680394153610,1.73978373,21.134,21.128,19.01]
[1680394153810,1.73978373,21.133,21.128,19.01]
[1680394154010,19.01,21.136,21.128,19.01]
[1680394154211,43.81109548,21.135,21.128,19.01]
[1680394154510,1.7397843,21.134,21.128,19.01]
[1680394154706,19.01,21.136,21.129,5.0]
[1680394155011,0.06648287,21.138,21.135,19.01]
[1680394155211,1.73905819,21.142,21.135,19.01]
[1680394155414,19.01,21.143,21.135,19.01]
[1680394155615,1.7390497,21.142,21.135,19.01]
[1680394157011,1.7390497,21.142,21.137,19.01]
[1680394157212,0.07032373,21.144,21.137,19.01]
[1680394157412,1.80938371,21.144,21.137,19.01]
[1680394160718,19.01,21.142,21.134,19.01]
[1680394165221,19.01,21.138,21.131,19.01]
[1680394176233,19.01,21.141,21.134,19.01]
[1680394180439,19.01,21.143,21.136,19.01]
[1680394180638,1.73909296,21.142,21.136,19.01]
[1680394186048,19.01,21.143,21.136,19.01]
[1680394186342,1.73904598,21.142,21.136,19.01]
[1680394187041,1.73904598,21.142,21.138,19.01]
[1680394187242,0.07032373,21.144,21.138,19.01]
[1680394187444,41.21493332,21.144,21.138,19.01]
[1680394187636,19.07370086,21.148,21.141,19.01]
[1680394187839,41.20364647,21.147,21.141,19.01]
[1680394188035,1.73869298,21.146,21.144,19.01]
[1680394188236,19.01,21.151,21.144,19.01]
[1680394188441,0.06430426,21.152,21.147,19.01]
[1680394188642,41.20550032,21.154,21.147,19.01]
[1680394188841,41.20550032,21.153,21.147,19.01]
[1680394189045,1.73828335,21.152,21.147,19.01]
[1680394189247,1.73828335,21.151,21.147,19.01]
[1680394189545,19.01,21.155,21.147,19.01]
[1680394189746,41.20497459,21.154,21.147,19.01]
[1680394189947,41.20497459,21.153,21.147,19.01]
[1680394190148,1.73828441,21.152,21.147,19.01]
[1680394190451,5.06070068,21.157,21.133,5.0]
[1680394190452,19.01,21.149,21.133,5.0]
[1680394190648,0.06191175,21.148,21.133,5.0]
[1680394190842,0.06191175,21.148,21.142,19.01]
[1680394191045,5.0,21.148,21.142,19.01]
[1680394191349,19.01,21.149,21.142,19.01]
[1680394192546,23.7,21.151,21.14,23.7]
[1680394192750,1.73850118,21.15,21.14,23.7]
[1680394193346,23.7,21.151,21.141,46.1058]
[1680394196954,0.06140502,21.152,21.142,23.7]
[1680394197153,1.79969371,21.152,21.142,23.7]
[1680394206863,1.79969371,21.152,21.144,23.47]
[1680394207165,1.73828869,21.151,21.144,23.47]
[1680394207365,1.73828869,21.15,21.144,23.47]
[1680394207566,0.06140502,21.152,21.144,23.47]
[1680394210671,0.06140502,21.152,21.145,46.4261]
[1680394224085,0.06140502,21.152,21.146,5.0]
[1680394224286,1.73845208,21.154,21.146,5.0]
[1680394226183,1.73845208,21.154,21.145,46.4261]
[1680394231791,1.73845208,21.154,21.146,5.0]
[1680394231992,1.73845208,21.154,21.149,23.58]
[1680394232192,1.73845208,21.153,21.149,23.58]
[1680394232394,1.73845208,21.152,21.149,23.58]
[1680394232593,0.06078179,21.156,21.149,23.58]
[1680394233495,41.30491969,21.156,21.149,23.58]
[1680394233688,1.73816898,21.155,21.149,23.58]
[1680394233892,1.73816898,21.154,21.149,23.58]
[1680394234093,1.73816898,21.153,21.149,23.58]
[1680394234295,0.06078179,21.156,21.149,23.58]
[1680394235196,183.10640012,21.156,21.146,5.0]
[1680394235497,41.24561833,21.155,21.145,70.1261]
[1680394235694,1.7381765,21.154,21.145,70.1261]
[1680394235895,1.7381765,21.153,21.145,70.1261]
[1680394236096,1.7381765,21.152,21.145,70.1261]
[1680394236391,141.86078179,21.156,21.145,70.1261]
[1680394236596,41.24309753,21.155,21.145,70.1261]
[1680394236894,1.73823544,21.154,21.145,70.1261]
[1680394237095,1.73823544,21.153,21.145,70.1261]
[1680394237294,1.73823544,21.152,21.145,70.1261]
[1680394237493,141.86078179,21.156,21.145,70.1261]
[1680394237695,41.24256834,21.155,21.145,70.1261]
[1680394237906,1.73823696,21.154,21.145,70.1261]
[1680394238096,1.73823696,21.153,21.145,70.1261]
[1680394238396,1.73823696,21.152,21.145,70.1261]
[1680394238597,141.86078179,21.156,21.145,70.1261]
[1680394238795,41.24225515,21.155,21.145,70.1261]
[1680394238995,41.24225515,21.154,21.145,70.1261]
[1680394239197,1.73823534,21.153,21.145,70.1261]
[1680394239397,1.73823534,21.152,21.145,46.4261]
[1680394239594,23.61,21.155,21.145,46.4261]
[1680394239794,41.24263517,21.154,21.145,46.4261]
[1680394239996,1.73823777,21.153,21.145,46.4261]
[1680394240205,1.73823777,21.152,21.145,46.4261]
[1680394240397,23.61,21.155,21.145,46.4261]
[1680394240597,183.04260818,21.154,21.145,46.4261]
[1680394240798,1.73824304,21.153,21.145,46.4261]
[1680394242099,1.73824304,21.152,21.145,46.4261]
[1680394242299,23.61,21.155,21.145,46.4261]
[1680394242597,141.8,21.153,21.145,46.4261]
[1680394242898,1.73824966,21.152,21.145,46.4261]
[1680394243800,23.48,21.152,21.141,23.7]
[1680394244003,23.56,21.149,21.138,74.735]
[1680394247003,23.76533373,21.151,21.14,23.7]
[1680394248203,165.56533373,21.151,21.14,23.7]
[1680394252204,141.8,21.149,21.14,23.7]
[1680394252405,39.50137179,21.148,21.138,46.255]
[1680394257510,181.30137179,21.148,21.138,46.255]
[1680394257812,181.30137179,21.148,21.137,23.7]
[1680394257813,39.50137179,21.147,21.137,23.7]
[1680394261714,39.50137179,21.146,21.137,23.7]
[1680394262016,23.7,21.149,21.137,23.7]
[1680394262213,39.50490003,21.148,21.137,23.7]
[1680394267020,39.50490003,21.148,21.139,23.58]
[1680394267221,39.50490003,21.147,21.139,23.58]
[1680394267520,39.50490003,21.146,21.139,23.58]
[1680394267722,23.76533373,21.151,21.139,23.58]
[1680394267923,39.50469796,21.15,21.139,23.58]
[1680394269223,39.50469796,21.15,21.14,5.0]
[1680394272229,39.50469796,21.15,21.143,23.7]
[1680394272525,39.50469796,21.149,21.147,23.48]
[1680394272727,39.50469796,21.148,21.147,23.48]
[1680394272920,0.06751335,21.155,21.147,23.48]
[1680394273722,41.31035254,21.155,21.147,23.48]
[1680394274028,41.24283919,21.154,21.147,23.48]
[1680394274229,41.24283919,21.153,21.147,23.48]
[1680394274531,39.50469796,21.152,21.147,23.48]
[1680394274827,39.50469796,21.151,21.147,23.48]
[1680394275027,39.50469796,21.15,21.147,23.48]
[1680394275227,39.50469796,21.149,21.147,23.48]
[1680394275429,0.06751335,21.155,21.147,23.48]
[1680394276328,27.04233809,21.155,21.147,23.48]
[1680394276528,26.97482474,21.154,21.147,23.48]
[1680394276730,26.97482474,21.153,21.147,23.48]
[1680394276929,25.23666519,21.152,21.147,23.48]
[1680394277229,25.23666519,21.151,21.147,23.48]
[1680394277431,25.23666519,21.15,21.147,23.48]
[1680394277627,25.23666519,21.149,21.147,23.48]
[1680394277828,0.06751335,21.155,21.147,23.48]
[1680394278528,27.04293251,21.155,21.147,23.48]
[1680394278827,25.23726886,21.154,21.147,23.48]
[1680394279024,25.23726886,21.153,21.147,23.48]
[1680394279230,25.23726886,21.152,21.148,45.366]
[1680394279429,25.23726886,21.151,21.148,45.366]
[1680394279628,0.06751335,21.155,21.147,23.48]
[1680394279828,0.06751335,21.155,21.148,45.366]
[1680394280029,0.06751335,21.155,21.148,50.366]
[1680394280328,0.06751335,21.155,21.149,5.0]
[1680394280532,26.96561735,21.155,21.149,5.0]
[1680394280726,26.96561735,21.154,21.149,5.0]
[1680394280923,25.22770792,21.153,21.149,5.0]
[1680394281129,25.22770792,21.152,21.149,5.0]
[1680394281434,25.22770792,21.151,21.149,5.0]
[1680394281734,104.12930795,21.159,21.148,5.0]
[1680394281934,26.96294511,21.158,21.148,5.0]
[1680394282138,26.96294511,21.157,21.148,5.0]
[1680394282335,26.96294511,21.156,21.147,23.48]
[1680394282634,26.96294511,21.155,21.147,23.48]
[1680394282827,26.96294511,21.154,21.147,23.48]
[1680394283032,26.96294511,21.153,21.147,23.48]
[1680394283337,25.22503112,21.152,21.147,23.48]
[1680394283532,25.22503112,21.158,21.147,23.48]
[1680394283839,26.96311946,21.157,21.147,23.48]
[1680394284033,26.96311946,21.156,21.147,23.48]
[1680394284235,26.96311946,21.155,21.147,23.48]
[1680394284438,26.96311946,21.154,21.147,23.48]
[1680394284738,25.22503112,21.153,21.147,23.48]
[1680394285038,25.22503112,21.152,21.147,23.48]
[1680394285242,25.22503112,21.151,21.147,23.48]
[1680394285433,5.0,21.158,21.147,23.48]
[1680394285635,26.96210671,21.157,21.147,23.48]
[1680394285834,26.96210671,21.156,21.147,23.48]
[1680394286038,26.96210671,21.155,21.147,23.48]
[1680394286237,26.96210671,21.154,21.147,23.48]
[1680394286438,25.22419928,21.153,21.147,23.48]
[1680394286638,25.22419928,21.152,21.147,23.48]
[1680394286941,25.22419928,21.151,21.147,23.48]
[1680394287141,5.0,21.158,21.147,23.48]
[1680394287440,45.90213018,21.157,21.149,18.94]
[1680394287641,26.96213018,21.156,21.149,18.94]
[1680394287842,26.96213018,21.155,21.149,18.94]
[1680394288044,26.96213018,21.154,21.149,18.94]
[1680394288240,25.22422066,21.154,21.149,18.94]
[1680394288541,25.22422066,21.153,21.149,18.94]
[1680394288734,25.22422066,21.152,21.149,18.94]
[1680394288937,25.22422066,21.151,21.149,18.94]
[1680394289244,18.94,21.157,21.149,18.94]
[1680394289543,26.95922664,21.156,21.149,18.94]
[1680394289742,26.95922664,21.155,21.149,18.94]
[1680394289939,26.95922664,21.154,21.149,18.94]
[1680394290144,25.22131766,21.153,21.149,18.94]
[1680394290339,25.22131766,21.152,21.149,18.94]
[1680394290541,25.22131766,21.151,21.149,18.94]
[1680394290843,18.94,21.157,21.149,18.94]
[1680394291043,0.0681472,21.159,21.153,18.94]
[1680394291244,18.94,21.16,21.153,18.94]
[1680394291542,25.21034099,21.159,21.153,18.94]
[1680394293850,25.21034099,21.159,21.144,5.0]
[1680394294052,18.94,21.161,21.154,18.94]
[1680394294358,25.20609559,21.16,21.157,18.94]
[1680394294551,25.20609559,21.159,21.157,18.94]
[1680394294853,18.94,21.165,21.157,18.94]
[1680394295053,26.94733487,21.164,21.157,18.94]
[1680394295248,26.94733487,21.163,21.157,18.94]
[1680394295550,26.94733487,21.162,21.157,18.94]
[1680394295851,26.94733487,21.161,21.157,18.94]
[1680394296049,25.20979742,21.16,21.157,18.94]
[1680394296350,18.94,21.165,21.157,18.94]
[1680394296647,26.94743013,21.164,21.157,18.94]
[1680394296849,26.94743013,21.163,21.157,18.94]
[1680394297048,26.94743013,21.162,21.156,18.94]
[1680394297252,26.94743013,21.161,21.156,18.94]
[1680394297451,25.2098908,21.16,21.154,23.67]
[1680394297751,0.06190648,21.164,21.155,5.0]
[1680394297953,1.79944998,21.164,21.155,5.0]
[1680394298150,1.79944998,21.164,21.154,23.67]
[1680394298151,25.21012022,21.163,21.154,23.67]
[1680394298354,1.7375435,21.162,21.154,23.67]
[1680394298551,25.21012022,21.161,21.154,23.67]
[1680394298952,5.06190648,21.164,21.154,23.67]
[1680394299147,26.94752308,21.163,21.154,23.67]
[1680394299351,26.94752308,21.162,21.154,23.67]
[1680394299547,26.94752308,21.161,21.154,23.67]
[1680394299855,0.06190648,21.164,21.154,23.67]
[1680394300055,168.80955904,21.164,21.154,23.67]
[1680394300256,26.94765256,21.163,21.154,23.67]
[1680394300456,26.94765256,21.162,21.154,23.67]
[1680394300756,26.94765256,21.161,21.154,23.67]
[1680394300954,141.86190648,21.164,21.154,23.67]
[1680394301156,26.94782033,21.163,21.154,23.67]
[1680394301356,26.94782033,21.162,21.154,23.67]
[1680394301557,26.94782033,21.161,21.154,23.67]
[1680394301757,141.86190648,21.164,21.154,23.67]
[1680394301957,26.94777373,21.163,21.154,23.67]
[1680394302257,26.94777373,21.162,21.154,23.67]
[1680394302558,26.94777373,21.161,21.154,23.67]
[1680394302755,141.86190648,21.164,21.154,23.67]
[1680394302956,168.747772,21.163,21.154,23.67]
[1680394303156,26.947772,21.162,21.154,23.67]
[1680394303456,1.73754571,21.161,21.154,23.67]
[1680394303758,141.8,21.163,21.154,23.67]
[1680394304057,26.94777448,21.162,21.154,23.67]
[1680394304359,1.73754638,21.161,21.154,23.67]
[1680394304555,141.86190648,21.164,21.154,23.67]
[1680394304757,168.74796566,21.163,21.154,23.67]
[1680394304956,26.94796566,21.162,21.154,23.67]